Cogmind - Beta 16 @@@ ROGUE MODE // 2025.11.13 @ 21:29:06 // Winter2019/RPGLIKE Player: Rentaro Result: Destroyed by as-55641 with Assembled Shotgun Performance ------------- Evolutions (3) 1500 Regions Visited (10) 2000 Robots Destroyed (277) 1385 Value Destroyed (8540) 8540 Prototype IDs (53) 1060 Alien Tech Used (1) 200 Bonus (5011) 5011 TOTAL SCORE: 19696 Bonus ------- Triggered High Security 500 High Alert Combat Kills 2333 Follower Combat Kills 50 Aligned with FarCom 300 Destroyed Z-Imprinter 1000 Triggered Deep Caves Wall 500 Exposed GOLEM Chamber 500 Friendly Fire -172 Cogmind --------- Core Integrity 0/650 Matter 300/300 Energy 820/820 System Corruption 0% Temperature Cool (36) Movement Hovering (48) Location -7/Deep Caves Parts ------- > --- POWER (3) -------- Light Fission Core Light Fission Core Zionite Light DM Reactor > --- PROPULSION (4) --- Zionite Glidesys I Zionite Glidesys I Zionite Glidesys I Zionite Glidesys I > --- UTILITY (9) ------ Experimental Heat Sink Zionite Biocell Structural Scanner Improved Signal Interpreter Core Analyzer Improved Reaction Control System Phase Shifter Hacking Suite > --- WEAPON (4) ------- Zionite Phaser-S Zionite Phaser-S Zionite Phaser-S Zionite Phaser-S > --- INVENTORY (2) ---- Zionite Weapon Casing Cooled Plasma Cannon Peak State ------------ > --- POWER ------------ Light Fission Core Light Fission Core Zionite Light DM Reactor > --- PROPULSION ------- Zionite Glidesys I Zionite Glidesys I Zionite Glidesys I Zionite Glidesys I > --- UTILITY ---------- Experimental Heat Sink Improved Signal Interpreter Surveybot 24 Scanner Surveybot 24 Chip Core Analyzer Particle Charger Phase Shifter Hacking Suite System Shield > --- WEAPON ----------- Zionite Phaser-S Zionite Phaser-S Zionite Phaser-S Zionite Phaser-S > --- INVENTORY -------- Zionite Weapon Casing Cooled Plasma Cannon [Rating: 115] Favorites ----------- Power Light Fission Core Engine Light Ion Engine Power Core Light Fission Core Reactor Zionite Light DM Reactor Propulsion Nuclear Pulse Thruster Leg Aluminum Leg Wheel Compact Wheel Hover Unit Zionite Glidesys I Flight Unit Nuclear Pulse Thruster Utility Hacking Suite Device Structural Scanner Storage Zionite Biocell Processor Core Analyzer Hackware Hacking Suite Protection Zionite Weapon Casing Weapon Heavy Particle Gun Energy Gun Heavy Particle Gun Energy Cannon Plasma Cannon Ballistic Gun Light Assault Rifle Launcher Rocket Launcher Special Weapon Mining Laser Special Melee Weapon Datajack Build | -11 -10 -10 -10 -9 -8 -7 -7 -7 -7 -7 ------- Run | Yrd Mat Min Exi Min Mat Fac Low Low Zio Dee Slots Evolved 15 | 4 . . . 5 2 4 . . . . Power 2 | . . . . 1 . 1 . . . . Propulsion 3 | 1 . . . 2 . . . . . . Utility 7 | 1 . . . 1 2 3 . . . . Weapon 3 | 2 . . . 1 . . . . . . Parts Attached 114 | 7 13 1 1 3 27 25 . 3 2 32 Power 8 | 1 . 1 . . 1 3 . . . 2 Engine 4 | 1 . 1 . . 1 1 . . . . Core 3 | . . . . . . 2 . . . 1 Reactor 1 | . . . . . . . . . . 1 Propulsion 38 | 2 4 . . 1 14 8 . . . 9 Treads . | . . . . . . . . . . . Leg 1 | . . . . . . 1 . . . . Wheel 2 | 2 . . . . . . . . . . Hover 9 | . . . . . . . . . . 9 Flight 26 | . 4 . . 1 14 7 . . . . Utility 42 | 1 4 . 1 1 6 10 . 3 2 14 Device 23 | 1 1 . 1 1 3 4 . 3 2 7 Storage 1 | . . . . . . . . . . 1 Processor 9 | . 3 . . . . 5 . . . 1 Hackware 4 | . . . . . 3 1 . . . . Protection 5 | . . . . . . . . . . 5 Artifact . | . . . . . . . . . . . Weapon 26 | 3 5 . . 1 6 4 . . . 7 Energy Gun 13 | 1 . . . . 3 2 . . . 7 Energy Cannon 5 | . . . . 1 2 2 . . . . Ballistic Gun 5 | 2 2 . . . 1 . . . . . Ballistic Cannon . | . . . . . . . . . . . Launcher 1 | . 1 . . . . . . . . . Special Weapon 1 | . 1 . . . . . . . . . Impact Weapon . | . . . . . . . . . . . Slashing Weapon . | . . . . . . . . . . . Piercing Weapon . | . . . . . . . . . . . Special Melee Weapon 1 | . 1 . . . . . . . . . Unidentified Prototypes 22 | . . . . . 4 5 1 . 2 10 Parts Lost 6 | . . . . . . 1 . . . 5 Power 1 | . . . . . . 1 . . . . Propulsion 1 | . . . . . . . . . . 1 Utility 2 | . . . . . . . . . . 2 Weapon 2 | . . . . . . . . . . 2 Highest Loss Streak 2 | . . . . . . 1 . . . 2 To Critical Strikes . | . . . . . . . . . . . Average Backups 1 | . . 1 1 1 . 1 1 1 1 1 Power . | . . . . . . . . . . . Propulsion . | . . . . . . . . . . . Utility . | . . . . 1 . . . . . . Weapon . | . . 1 1 . . . 1 1 1 1 Tool/Special . | . . . . . . . . . . . Unused Backups 5 | . 1 . . . 2 . . . . 2 Power . | . . . . . . . . . . . Propulsion 2 | . . . . . 1 . . . . 1 Utility 1 | . . . . . . . . . . 1 Weapon 2 | . 1 . . . 1 . . . . . Tool/Special . | . . . . . . . . . . . Average Slot Usage (%) 92 | . 95 99 100 86 79 92 92 94 95 97 Engine 7 | . 12 12 12 10 11 6 . . . . Core 4 | . . . . . . 6 10 10 10 10 Hover 1 | . . . . . . . . . . 15 Flight 19 | . 20 24 25 22 26 20 20 20 20 4 Device 12 | . 11 12 12 10 10 10 9 14 15 21 Processor 8 | . 8 12 12 10 6 3 15 15 15 12 Hackware 10 | . . . . . 4 21 15 15 15 9 Energy Gun 13 | . . . . . 14 21 20 20 19 19 Ballistic Gun 10 | . 33 36 37 21 . . . . . . Peak Build Rating 115 | 7 9 9 15 15 41 70 72 73 83 115 Average Rating 44 | 5 7 7 9 10 29 56 70 72 73 99 On Entrance 33 | . 7 8 8 15 10 37 70 70 73 73 Avg Prop Armor Cover (%) 1 | . . . . . . . . . . 1 Naked Turns . | . . . . . . . . . . . Heaviest Build 53 | 9 13 11 8 14 21 31 30 32 36 53 Greatest Support 66 | 31 31 13 13 13 32 34 34 34 34 66 Greatest Overweight (x) 1 | . 1 . . 1 1 1 . . 1 1 Average Overweight (x) . | . . . . . . . . . . . Largest Inventory Capacity 2 | 1 1 1 2 2 2 2 2 2 2 2 Average Capacity 1 | 1 1 1 1 2 2 2 2 2 2 2 Most Carried 2 | . 1 1 2 2 2 2 2 2 2 2 Average Carried 1 | . . 1 1 1 . 1 1 1 2 1 Final Capacity 2 | 1 1 1 2 2 2 2 2 2 2 2 Final Carried 2 | . 1 1 2 2 . 1 2 2 2 2 Class Distribution -------------------- 29% | Wizard-Sprinter 27% | Hacker-Sprinter 21% | Gunner 10% | Scavenger-Gunner 5% | Hacker-Gunner Dominant Class ---------------- Gunner | -10/Materials Scavenger-Gunner | -10/Mines Scavenger-Gunner | -10/Exiles Skirmisher | -9/Mines Hacker-Sprinter | -8/Materials Wizard-Sprinter | -7/Factory Hacker-Sprinter | -7/Lower Caves Hacker-Sprinter | -7/Lower Caves Hacker-Sprinter | -7/Zion Hacker-Gunner | -7/Deep Caves Resources | -11 -10 -10 -10 -9 -8 -7 -7 -7 -7 -7 ----------- Run | Yrd Mat Min Exi Min Mat Fac Low Low Zio Dee Matter Collected 4514 | 276 2302 300 10 120 515 421 40 30 . 500 Remotely 481 | 140 341 . . . . . . . . . Salvage Created 11402 | 76 2968 409 . 155 2034 3219 303 990 . 1248 Parts 683 | 3 272 35 . 14 138 127 9 33 . 52 Haulers Intercepted 11 | . 1 . . . 6 4 . . . . Recyclers Shooed 4 | . 2 . . . 2 . . . . . Parts Field Recycled . | . . . . . . . . . . . Retrieved Matter . | . . . . . . . . . . . Parts Self-Destructed 37 | . . . . . . . 10 27 . . Prevented 4 | . . . . . . . . 4 . . Parts Restored . | . . . . . . . . . . . Kills | -11 -10 -10 -10 -9 -8 -7 -7 -7 -7 -7 ------- Run | Yrd Mat Min Exi Min Mat Fac Low Low Zio Dee Combat Hostiles Destroyed 200 | . 21 17 . 6 39 55 4 11 . 47 Guns 166 | . 16 17 . 2 23 47 4 10 . 47 Cannons 20 | . . . . 4 16 . . . . . AOE 8 | . 5 . . . . 3 . . . . Classes Destroyed 24 | 1 8 1 . . 6 3 2 1 . 2 Worker 63 | . 56 . . . 3 4 . . . . Builder 38 | . 31 . . . 6 1 . . . . Tunneler 6 | . 4 1 . . . 1 . . . . Hauler 11 | . 1 . . . 6 4 . . . . Recycler 14 | 1 11 . . . 1 1 . . . . Minesweeper 3 | . . . . . . . 1 2 . . Mechanic 2 | . . . . . . 2 . . . . Operator 5 | . 2 . . . 1 2 . . . . Watcher 16 | . 3 . . . 5 8 . . . . Swarmer 43 | . 9 12 . . 10 10 . 2 . . Cutter 2 | . . . . . 2 . . . . . Grunt 73 | . 12 4 . 6 14 28 3 6 . . Brawler 2 | . . . . . 1 1 . . . . Duelist 4 | . . . . . 1 2 1 . . . Protector 1 | . . . . . 1 . . . . . Sentry 15 | . . . . . 9 4 . 2 . . Hunter 1 | . . . . . . 1 . . . . Programmer 9 | . . . . . . 9 . . . . Heavy 1 | . . . . . 1 . . . . . Behemoth 1 | . . . . . . . . 1 . . Z-Technician 5 | . . . . . . . . . . 5 Z-Light 11 | . . . . . . . . . . 11 Decomposer 4 | . . . . . . . 2 2 . . Packrat 3 | . . . . . . . 1 2 . . Samaritan 4 | . . . . . . . 1 3 . . Assembled 35 | . . 1 . . . . . . . 34 Golem 1 | . . . . . . . . . . 1 Savage 1 | . . . . . . . . 1 . . Best Kill Streak 33 | 1 13 6 . 3 12 10 5 7 . 33 Combat Bots Only 33 | . 3 6 . 3 9 7 5 7 . 33 Max Kills in Single Turn 5 | 1 2 2 . 1 1 3 1 2 . 5 Gunslinging 2 | . . 1 . . . 1 . 1 . 2 Exploded 3 | . 2 . . . . 3 . . . . Melee . | . . . . . . . . . . . Uniques/NPCs Destroyed 1 | . . . . . . . . . . 1 Z-Imprinter (-7/Deep Caves) Combat | -11 -10 -10 -10 -9 -8 -7 -7 -7 -7 -7 -------- Run | Yrd Mat Min Exi Min Mat Fac Low Low Zio Dee Hostile Shots Fired 792 | . 89 47 . 26 179 174 5 55 . 217 Missed 359 | . 29 18 . 5 71 89 3 33 . 111 Hits 433 | . 60 29 . 21 108 85 2 22 . 106 Melee 9 | . . . . . 4 . . . . 5 Projectile 424 | . 60 29 . 21 104 85 2 22 . 101 AOE 2 | . . . . . 2 . . . . . Critical Strikes 10 | . . 1 . 1 5 2 . . . 1 Damage Taken 6846 | . 585 251 . 246 1660 1166 26 299 . 2613 Core 5497 | . 478 203 . 202 1388 943 20 245 . 2018 Absorbed by Shields 8 | . . . . . 8 . . . . . Redirected to Core 4251 | . 332 146 . 148 926 753 20 183 . 1743 Redirected to Shielding 115 | . . . . . . . . . . 115 Ignored by Resistances 560 | . . . . . 40 72 2 27 . 419 Core Remaining (%) 100 | 100 . . . 100 100 . . . . . Volleys Fired 894 | 3 331 34 . 24 187 181 12 31 6 85 Largest 4 | 3 3 3 . 3 3 4 4 4 1 4 Hottest 240 | 80 80 73 . 120 165 220 220 220 105 240 Shots Fired 2560 | 9 821 98 . 53 398 672 45 124 6 334 Gun 2363 | 9 756 96 . 29 300 670 44 124 1 334 Cannon 129 | . . . . 23 98 2 1 . 5 . Launcher 68 | . 65 2 . 1 . . . . . . Special . | . . . . . . . . . . . Kinetic 914 | 6 751 96 . 29 32 . . . . . Thermal 1370 | 3 5 . . 23 366 672 45 124 6 126 Explosive 68 | . 65 2 . 1 . . . . . . Electromagnetic . | . . . . . . . . . . . Phasic 208 | . . . . . . . . . . 208 Robot Hit Streak 48 | 5 20 5 . 21 34 36 18 48 . 43 Robot Miss Streak 7 | 1 7 4 . 3 2 3 1 1 . 4 Penetration Max . | . . . . . . . . . . . Secondary Targets 49 | . . 4 . . 4 13 . 4 . 24 Max Gunslinging Chain 3 | . . 1 . . 1 1 . 1 . 3 Shots Hit Robots 1324 | 6 423 47 . 30 200 315 29 93 . 181 Core Hits 608 | 2 208 26 . 13 93 132 16 41 . 77 Critical Kills 1 | . 1 . . . . . . . . . Critical Parts Destroyed 1 | . 1 . . . . . . . . . Critical Strikes 33 | . 2 . . . 2 15 1 3 . 10 Burn 24 | . . . . . 2 15 1 3 . 3 Destroy 2 | . 2 . . . . . . . . . Intensify 7 | . . . . . . . . . . 7 Melee Attacks . | . . . . . . . . . . . Impact . | . . . . . . . . . . . Slashing . | . . . . . . . . . . . Piercing . | . . . . . . . . . . . Sneak Attacks . | . . . . . . . . . . . Combat Hostiles . | . . . . . . . . . . . Follow-up Attacks . | . . . . . . . . . . . Damage Inflicted 28467 | 55 4839 464 . 451 4060 7596 609 2085 . 8308 Guns 23319 | 55 4092 464 . 193 2455 7390 609 2085 . 5976 Cannons 1863 | . . . . 258 1605 . . . . . Explosions 3285 | . 747 . . . . 206 . . . 2332 Melee . | . . . . . . . . . . . Ramming . | . . . . . . . . . . . Kinetic 4985 | 43 4081 464 . 193 204 . . . . . Thermal 18549 | 12 11 . . 258 3856 7596 609 2085 . 4122 Explosive 747 | . 747 . . . . . . . . . Electromagnetic . | . . . . . . . . . . . Impact . | . . . . . . . . . . . Slashing . | . . . . . . . . . . . Piercing . | . . . . . . . . . . . Phasic 4186 | . . . . . . . . . . 4186 Highest Corruption 8 | . 8 8 8 8 4 6 . . . . Average Corruption 5 | . 7 8 8 8 3 4 . . . . Corruption Purged 6 | . . . . . . 6 . . . . Corruption Blocked . | . . . . . . . . . . . Effects 224 | . 98 18 10 8 13 77 . . . . Message Errors 58 | . 25 3 4 3 3 20 . . . . Matter Fused 44 | . 16 5 3 3 6 11 . . . . Heat Flow Errors 29 | . 8 3 . 1 1 16 . . . . Energy Discharges 24 | . 14 1 . . 1 8 . . . . Parts Rejected 4 | . 1 3 . . . . . . . . Parts Fused 1 | . 1 . . . . . . . . . Data Loss (minor) 19 | . 10 . 1 . 1 7 . . . . Data Loss (major) 12 | . 4 1 . 1 . 6 . . . . Misfires 9 | . 4 1 . . 1 3 . . . . Alerts 6 | . 3 . 2 . . 1 . . . . Weapon Failures 18 | . 12 1 . . . 5 . . . . Overload Shots 4 | . . . . . . . . . 4 . Overflow Damage 447 | . 60 . . . 34 . . . . 353 Projectiles 34 | . . . . . 34 . . . . . Explosions 413 | . 60 . . . . . . . . 353 Melee . | . . . . . . . . . . . Knockbacks . | . . . . . . . . . . . Impact . | . . . . . . . . . . . Kinetic . | . . . . . . . . . . . Secondary . | . . . . . . . . . . . Self-Inflicted Damage 72 | . . . . . 72 . . . . . Shots 1 | . . . . . 1 . . . . . Rammed . | . . . . . . . . . . . Targets Rammed . | . . . . . . . . . . . Kicked . | . . . . . . . . . . . Crushed . | . . . . . . . . . . . Highest Temperature 408 | 80 297 188 . 408 118 273 61 66 . 162 Average Temperature 49 | 43 54 39 . 146 25 42 23 23 . 18 Received Heat Transfer 2188 | . 153 54 . 162 546 501 18 108 . 646 Effects 9 | . 6 . . 3 . . . . . . Shutdowns 1 | . . . . 1 . . . . . . Energy Bleed 4 | . 4 . . . . . . . . . Interference 3 | . 2 . . 1 . . . . . . Short Circuit 1 | . . . . 1 . . . . . . Siege Activations . | . . . . . . . . . . . Martial Activations . | . . . . . . . . . . . Shielding Activations . | . . . . . . . . . . . Robots Disrupted . | . . . . . . . . . . . Combat Hostiles . | . . . . . . . . . . . Robots Corrupted . | . . . . . . . . . . . Combat Hostiles . | . . . . . . . . . . . Parts Fried 2 | . . . . . . . 2 . . . Impact Corruptions . | . . . . . . . . . . . Robots Melted 7 | . . . . . . 5 . 2 . . Combat Hostiles 6 | . . . . . . 5 . 1 . . Parts Melted 86 | . . . . . 21 38 2 12 . 13 Heat Transferred 28226 | 25 25 . . 500 7562 13433 1110 3626 . 1945 Parts Sabotaged . | . . . . . . . . . . . Parts Stolen . | . . . . . . . . . . . Parts Stripped . | . . . . . . . . . . . Power Chain Reactions . | . . . . . . . . . . . Alert | -11 -10 -10 -10 -9 -8 -7 -7 -7 -7 -7 ------- Run | Yrd Mat Min Exi Min Mat Fac Low Low Zio Dee Maximum Alert Level 5 | . 4 3 . . 4 5 . . . . Low Security (%) 13 | 100 26 . . 100 6 . . . . . Level 1 3 | . 3 . . . 15 . . . . . Level 2 18 | . 7 78 . . 45 9 . . . . Level 3 22 | . 45 21 . . 21 10 . . . . Level 4 37 | . 17 . . . 11 68 . . . . Level 5 1 | . . . . . . 3 . . . . High Security 3 | . . . . . . 7 . . . . Max Security . | . . . . . . . . . . . Peak Influence 2177 | 5 1241 766 . 133 1261 2177 . . . . Initial 573 | . . 482 . . 49 573 . . . . Average 922 | . 673 636 . 47 654 1313 . . . . Influence Increases 7160 | 5 1865 506 . 267 1794 2388 95 240 . . Destroy 0b10 Robot/C 3060 | . 420 360 . 120 760 1100 80 220 . . Destroy 0b10 Robot/NC 795 | 5 540 5 . . 115 115 5 10 . . Destroy Leader 644 | . 88 50 . 20 202 264 10 10 . . Allied During Kill 34 | . . 34 . . . . . . . . Successful Hack 146 | . 8 . . . 47 91 . . . . Disable Machine 1770 | . 405 30 . 105 540 690 . . . . Destroy Structure 591 | . 389 12 . 22 85 83 . . . . Partial Spotted 75 | . 15 15 . . 15 30 . . . . Lose Combat Pursuer 45 | . . . . . 30 15 . . . . Influence Decreases 7160 | 5 628 1017 726 139 661 1472 1053 454 1005 . Entered New Map 4292 | . . 755 726 . 79 688 807 232 1005 . Time Decay 2788 | 5 628 262 . 139 542 744 246 222 . . Lost Part 10 | . . . . . . 10 . . . . Lost Ally 70 | . . . . . 40 30 . . . . Squads Dispatched 34 | . 3 . . . 4 27 . . . . Investigation 8 | . 1 . . . . 7 . . . . Extermination 8 | . . . . . . 8 . . . . Reinforcement 5 | . 2 . . . 3 . . . . . Assault 12 | . . . . . 1 11 . . . . Garrison 1 | . . . . . . 1 . . . . Intercept . | . . . . . . . . . . . Searches Triggered . | . . . . . . . . . . . Construction Impeded 1 | . . . . . 1 . . . . . Haulers Reinforced . | . . . . . . . . . . . Active Scanning Responses . | . . . . . . . . . . . Cargo Convoy Interrupts . | . . . . . . . . . . . Stealth | -11 -10 -10 -10 -9 -8 -7 -7 -7 -7 -7 --------- Run | Yrd Mat Min Exi Min Mat Fac Low Low Zio Dee Distress Signals 4 | . 2 . . . 1 . . 1 . . Communications Jammed . | . . . . . . . . . . . Distress Signals . | . . . . . . . . . . . Times Spotted 241 | . 34 18 . 6 49 70 4 11 . 49 Peak Tracking Total 13 | . 4 3 . 3 9 5 4 7 . 13 Tactical Retreats 3 | . . . . . 1 1 . . . 1 Traps | -11 -10 -10 -10 -9 -8 -7 -7 -7 -7 -7 ------- Run | Yrd Mat Min Exi Min Mat Fac Low Low Zio Dee Traps Triggered 11 | . 8 . . . 2 1 . . . . Indirectly . | . . . . . . . . . . . Trap Hack Attempts . | . . . . . . . . . . . Triggered . | . . . . . . . . . . . Disarmed . | . . . . . . . . . . . Reprogrammed . | . . . . . . . . . . . Reused . | . . . . . . . . . . . Traps Extracted . | . . . . . . . . . . . Installed 4 | . . . . . . . . 4 . . Triggered . | . . . . . . . . . . . Machines | -11 -10 -10 -10 -9 -8 -7 -7 -7 -7 -7 ---------- Run | Yrd Mat Min Exi Min Mat Fac Low Low Zio Dee Machines Disabled 124 | . 27 2 . 7 36 46 . . 3 3 Max in Single Turn 10 | . 2 1 . 1 2 10 . . 1 1 Garrison Access 3 | . . . . . 1 2 . . . . Machines Repaired . | . . . . . . . . . . . Machines Dismantled . | . . . . . . . . . . . Machines Sabotaged . | . . . . . . . . . . . Overloaded Fab Kills . | . . . . . . . . . . . Hacking | -11 -10 -10 -10 -9 -8 -7 -7 -7 -7 -7 --------- Run | Yrd Mat Min Exi Min Mat Fac Low Low Zio Dee Machines Accessed 54 | . 7 . 2 1 15 27 . 2 . . Terminals 30 | . 5 . . . 10 14 . 1 . . Fabricators 5 | . . . . . . 5 . . . . Repair Stations . | . . . . . . . . . . . Recycling Units 9 | . 2 . . . 2 5 . . . . Scanalyzers 3 | . . . . . 2 1 . . . . Garrison Access 3 | . . . . . 1 2 . . . . Total Hacks 143 | . 17 . 2 1 46 70 . 7 . . Successful 93 | . 8 . 2 1 26 49 . 7 . . Failed 49 | . 9 . . . 20 20 . . . . Catastrophic 8 | . 3 . . . 2 3 . . . . Database Lockouts 1 | . . . . . . 1 . . . . Manual 85 | . 8 . 1 . 27 43 . . 6 . Terminals 95 | . 12 . . . 34 43 . 6 . . Fabricators 11 | . . . . . . 11 . . . . Repair Stations . | . . . . . . . . . . . Recycling Units 25 | . 5 . . . 9 11 . . . . Scanalyzers 4 | . . . . . 2 2 . . . . Garrison Access 4 | . . . . . 1 3 . . . . Terminal Hacks 31 | . 2 . 2 1 9 10 . 7 . . Record 7 | . . . 1 . . . . 6 . . Part Schematic 6 | . . . . . 3 3 . . . . Robot Analysis 3 | . . . . . 2 1 . . . . Prototype ID Bank 3 | . . . . . 1 2 . . . . Open Door 2 | . . . . 1 . . . 1 . . Branch Access Points 2 | . . . . . 1 1 . . . . Emergency Access Points 1 | . 1 . . . . . . . . . Machine Index 1 | . . . . . . 1 . . . . Terminal Index 1 | . . . . . . 1 . . . . Alert Level 2 | . . . . . 2 . . . . . Hauler Manifests 1 | . . . . . . 1 . . . . Registered Prototypes 1 | . 1 . . . . . . . . . Proto ID Catalog 1 | . . . 1 . . . . . . . Fabricator Hacks 11 | . . . . . . 11 . . . . Network Status 1 | . . . . . . 1 . . . . Load Schematic 5 | . . . . . . 5 . . . . Build 5 | . . . . . . 5 . . . . Repair Station Hacks . | . . . . . . . . . . . Recycling Unit Hacks 10 | . 3 . . . 2 5 . . . . Retrieve Components 10 | . 3 . . . 2 5 . . . . Scanalyzer 3 | . . . . . 2 1 . . . . Retrieve Study 3 | . . . . . 2 1 . . . . Garrison Access Hacks 4 | . . . . . 1 3 . . . . Seal Access 3 | . . . . . 1 2 . . . . Coupler Status 1 | . . . . . . 1 . . . . Unauthorized Hacks 34 | . 3 . . . 12 19 . . . . Terminals 26 | . 2 . . . 10 14 . . . . Assimilate 8 | . . . . . 3 5 . . . . Botnet 16 | . 2 . . . 6 8 . . . . Operators 2 | . . . . . 1 1 . . . . Fabricators . | . . . . . . . . . . . Repair Stations . | . . . . . . . . . . . Recycling Units 8 | . 1 . . . 2 5 . . . . Reject 8 | . 1 . . . 2 5 . . . . Scanalyzers . | . . . . . . . . . . . Garrison Access . | . . . . . . . . . . . Data Cores Recovered 2 | . . . . . . 2 . . . . Used 1 | . . . . . . 1 . . . . Hacking Detections 29 | . 5 . . . 6 18 . . . . Full Trace Events 8 | . 1 . . . . 7 . . . . Feedback Events . | . . . . . . . . . . . Feedback Blocked 1 | . . . . . . 1 . . . . Robot Schematics Acquired 4 | . . . . . . . . . 4 . Robots Built . | . . . . . . . . . . . Authchips . | . . . . . . . . . . . Time . | . . . . . . . . . . . Total Robot Build Rating . | . . . . . . . . . . . Part Schematics Acquired 20 | . . . . . 3 3 . . 14 . Parts Built 9 | . . . . . . 9 . . . . Authchips . | . . . . . . . . . . . Time 431 | . . . . . . 431 . . . . Total Part Build Rating 43 | . . . . . . 43 . . . . Part Studies Acquired 3 | . . . . . 2 1 . . . . Parts Repaired . | . . . . . . . . . . . Time . | . . . . . . . . . . . Parts Recycled . | . . . . . . . . . . . Recycled Matter . | . . . . . . . . . . . Retrieved Matter . | . . . . . . . . . . . Retrieved Components 55 | . 10 . . . 12 33 . . . . Parts Scanalyzed . | . . . . . . . . . . . Part Schematics Acquired . | . . . . . . . . . . . Parts Damaged . | . . . . . . . . . . . Bothacking | -11 -10 -10 -10 -9 -8 -7 -7 -7 -7 -7 ------------ Run | Yrd Mat Min Exi Min Mat Fac Low Low Zio Dee Used RIF Installer . | . . . . . . . . . . . Robots Hacked . | . . . . . . . . . . . Non-combat . | . . . . . . . . . . . Combat . | . . . . . . . . . . . Robot Hacks Applied . | . . . . . . . . . . . Relay Couplers Released 1 | . . . . . . 1 . . . . Programmers 1 | . . . . . . 1 . . . . Fabnet Peak Effective % . | . . . . . . . . . . . Robots Rewired . | . . . . . . . . . . . Allies Hacked . | . . . . . . . . . . . Hacks Repelled . | . . . . . . . . . . . Allies | -11 -10 -10 -10 -9 -8 -7 -7 -7 -7 -7 -------- Run | Yrd Mat Min Exi Min Mat Fac Low Low Zio Dee Total Allies 11 | . . 3 . . 3 3 . . 2 . Largest Group 3 | . . 3 3 . 1 2 . . 2 . Highest-Rated Group 56 | . . 40 40 . 10 52 . . 56 . Highest-Rated Ally 28 | . . 16 16 . 10 26 . . 28 . Total Orders 6 | . . . 2 2 2 . . . . . STAY 1 | . . . . . 1 . . . . . EXPLORE 3 | . . . 1 1 1 . . . . . RETURN 2 | . . . 1 1 . . . . . . Ally Attacks 28 | . . 28 . . . . . . . . Total Damage 253 | . . 253 . . . . . . . . Kills 3 | . . 3 . . . . . . . . Allies Corrupted . | . . . . . . . . . . . Allies Melted . | . . . . . . . . . . . Intel | -11 -10 -10 -10 -9 -8 -7 -7 -7 -7 -7 ------- Run | Yrd Mat Min Exi Min Mat Fac Low Low Zio Dee Active Infowar (turns) 11609 | . 2128 577 209 297 1546 4172 538 469 362 1311 Sensors 2 | . . . . . 2 . . . . . Terrain 388 | . . . . . . . . . . 388 Structural 11221 | . 2128 577 209 297 1546 4172 538 469 362 923 Traps 14 | . . . . . . . . 14 . . Robot Analysis Total 3 | . . . . . 2 1 . . . . Derelict Logs Recovered 7 | . . 1 . 1 . . 2 3 . . Drone Launches 3 | . . . 1 1 1 . . . . . Drone Recoveries 2 | . . . 1 1 . . . . . . Exploration | -11 -10 -10 -10 -9 -8 -7 -7 -7 -7 -7 ------------- Run | Yrd Mat Min Exi Min Mat Fac Low Low Zio Dee Turns Passed 12753 | 90 2770 577 278 323 1546 4172 538 469 362 1628 Spaces Moved 14775 | 82 1840 635 662 435 1658 4180 1116 1060 1034 2073 Core 15 | 9 . . . . 6 . . . . . Treads . | . . . . . . . . . . . Legs 1 | . . . . . . 1 . . . . Wheels 380 | 73 307 . . . . . . . . . Hover 1717 | . . . . . . . . . . 1717 Flight 12662 | . 1533 635 662 435 1652 4179 1116 1060 1034 356 Fastest Speed 24 | 50 37 37 37 37 24 27 31 31 31 31 Average Speed 35 | 85 47 37 37 37 29 29 31 31 31 46 Slowest Speed 190 | 90 120 37 37 117 115 190 31 31 111 130 Overloaded Moves 39 | . . . . . 39 . . . . . Propulsion Burnouts . | . . . . . . . . . . . Robots Hopped 45 | . 3 7 . 1 7 27 . . . . Potential Cave-ins . | . . . . . . . . . . . Cave-ins Triggered . | . . . . . . . . . . . Exploration Rate (%) 83 | 3 100 95 92 96 99 64 98 98 84 91 Regions Visited 10 Branch Regions 7 Pre-discovered Areas 3 | . . 1 . . . . 1 1 . . Known Exits Taken 9 | . 1 1 1 1 1 1 1 1 1 . Unknown Exits Taken 1 | 1 . . . . . . . . . . Scrap Searched 20 | . . 2 . 2 . . 3 9 4 . Spaces Dug 86 | . 84 . . . 1 1 . . . . Terrain Destroyed 749 | . 432 12 . 23 115 94 3 . 1 69 Melee . | . . . . . . . . . . . Projectile 84 | . . . . 7 13 2 3 . 1 58 AOE 665 | . 432 12 . 16 102 92 . . . 11 Terrain Rammed . | . . . . . . . . . . . Walls Destroyed . | . . . . . . . . . . . Machines Disabled . | . . . . . . . . . . . Actions | -11 -10 -10 -10 -9 -8 -7 -7 -7 -7 -7 --------- Run | Yrd Mat Min Exi Min Mat Fac Low Low Zio Dee Total 20447 | 92 3178 903 694 553 2377 6658 1276 1122 1065 2529 Wait 4250 | 1 950 222 30 66 392 2207 139 4 18 221 Move 14680 | 81 1833 620 661 432 1644 4129 1115 1059 1033 2073 Hop 40 | . 3 7 . 1 6 23 . . . . Pick Up 26 | . 3 . 1 1 5 3 1 3 . 9 Fast Attach 84 | 7 12 3 1 3 21 15 1 2 2 17 Attach 8 | . . . . 1 2 3 . . . 2 Detach 15 | . 3 . . 1 1 6 . . . 4 Swap 88 | . 13 5 . 3 16 16 3 1 4 27 Drop 92 | . 9 1 1 5 32 12 . 4 2 26 Fire 894 | 3 331 34 . 24 187 181 12 31 6 85 Melee . | . . . . . . . . . . . Ram . | . . . . . . . . . . . Kick . | . . . . . . . . . . . Crush . | . . . . . . . . . . . Escape Stasis . | . . . . . . . . . . . Rewire . | . . . . . . . . . . . Trap 4 | . . . . . . . . 4 . . Miscellaneous 266 | . 21 11 . 16 71 63 5 14 . 65 Route ------- -11/Scrapyard -10/Materials (discovered 6 exits: *Mat x3 / *Min x2 / [Sub]) -10/Mines (discovered 4 exits: *Mat x2 / *Exi / [Sub]) -10/Exiles (discovered 2 exits: *Min x2) -9/Mines (discovered 2 exits: *Mat x2) -8/Materials (discovered 3 exits: *Fac x3) -7/Factory (discovered 6 exits: *Fac x2 / *Sto x2 / *Low x2) -7/Lower Caves -7/Lower Caves (discovered 2 exits: *Fac / *Zio) -7/Zion (discovered 2 exits: *Dee / *Pro) -7/Deep Caves (discovered 1 exit: *Pro) History --------- Turn | Location | Event 1 | -11/Scrapyard | Upgraded with Propulsion slot (x1) 1 | -11/Scrapyard | Upgraded with Utility slot (x1) 1 | -11/Scrapyard | Upgraded with Weapon slot (x2) 22 | -11/Scrapyard | Discovered new exit (range 15) 91 | -11/Scrapyard | Entered Materials 127 | -10/Materials | Discovered new exit (range 12) 310 | -10/Materials | Build established: Gunner 373 | -10/Materials | Discovered new exit (range 14) 427 | -10/Materials | Core integrity fell below 50% 504 | -10/Materials | Discovered new exit (range 7) 714 | -10/Materials | Reached level 2 726 | -10/Materials | Discovered new exit (range 15) 805 | -10/Materials | Discovered new exit (range 16) 836 | -10/Materials | Identified exit to Materials 852 | -10/Materials | Discovered new exit (range 10) 879 | -10/Materials | Identified exit to Mines 1050 | -10/Materials | Reached level 3 2412 | -10/Materials | Reached level 4 2861 | -10/Materials | Entered Mines 2949 | -10/Mines | Reached level 5 2972 | -10/Mines | Discovered exit to Materials (range 15) 2986 | -10/Mines | Discovered new exit (range 11) 3003 | -10/Mines | Assisted by bots powering up and referring to "LRC-V3" 3008 | -10/Mines | Deemed a non-threat by the Exiles lab entrance 3008 | -10/Mines | Discovered new exit (range 6) 3010 | -10/Mines | Identified exit to Exiles 3045 | -10/Mines | Received a Rocket Launcher from a helpful Derelict 3070 | -10/Mines | Excavation squad dispatched 3070 | -10/Mines | A large section of the Mines collapsed 3219 | -10/Mines | Build established: Scavenger-Gunner 3316 | -10/Mines | Discovered exit to Materials (range 5) 3335 | -10/Mines | Learned location of Zion (-7) 3438 | -10/Mines | Entered Exiles 3438 | -10/Exiles | Accompanied by 3 allies 3446 | -10/Exiles | Discovered new exit (range 14) 3450 | -10/Exiles | Identified exit to Mines 3457 | -10/Exiles | Met 8R-AWN 3463 | -10/Exiles | Met EX-HEX 3480 | -10/Exiles | Met EX-DEC 3489 | -10/Exiles | Visited The Gauntlet 3534 | -10/Exiles | Discovered exit to Mines (range 14) 3572 | -10/Exiles | Met EX-BIN 3588 | -10/Exiles | Aligned with FarCom system 3589 | -10/Exiles | Given EX-Vault access code 3601 | -10/Exiles | Opened EX-Vault 3624 | -10/Exiles | Warned to stay clear of 0b10 Research branches 3647 | -10/Exiles | Found Supersonic Drone Bay 3716 | -10/Exiles | Left Exiles lab with Supersonic Drone Bay 3716 | -10/Exiles | Entered Mines 3718 | -9/Mines | Reached level 6 3719 | -9/Mines | Discovered new exit (range 57) 3726 | -9/Mines | Discovered new exit (range 56) 3778 | -9/Mines | Identified exit to Materials 3781 | -9/Mines | Met a Derelict who couldn't figure out how to use a Trap Extractor 3941 | -9/Mines | Upgraded with Power slot (x1) 3941 | -9/Mines | Upgraded with Propulsion slot (x2) 3941 | -9/Mines | Upgraded with Utility slot (x1) 3941 | -9/Mines | Upgraded with Weapon slot (x1) 4039 | -9/Mines | Entered Materials 4041 | -8/Materials | Reached level 7 4065 | -8/Materials | Reached level 8 4168 | -8/Materials | Lost 3 allies 4204 | -8/Materials | Destroyed 9 combat bots 4237 | -8/Materials | Reached level 9 4404 | -8/Materials | Core integrity fell below 50% 4443 | -8/Materials | Reached level 10 4448 | -8/Materials | Destroyed 7 combat bots 4467 | -8/Materials | Upgraded with Utility slot (x1) 4476 | -8/Materials | Build established: Hacker-Sprinter 4485 | -8/Materials | Discovered new exit (range 15) 4507 | -8/Materials | Identified exit to Factory 4586 | -8/Materials | Discovered exit to Factory (range 5) 5071 | -8/Materials | Reached level 11 5110 | -8/Materials | Discovered exit to Factory (range 4) 5130 | -8/Materials | Core integrity fell below 20% 5239 | -8/Materials | First assault squad dispatched 5252 | -8/Materials | Upgraded with Utility slot (x1) 5383 | -8/Materials | Reached level 12 5585 | -8/Materials | Entered Factory 5586 | -7/Factory | Identified exit to Storage 5587 | -7/Factory | Reached level 13 5600 | -7/Factory | Upgraded with Power slot (x1) 5600 | -7/Factory | Upgraded with Utility slot (x1) 5866 | -7/Factory | Reached level 14 5941 | -7/Factory | Build established: Wizard-Sprinter 5962 | -7/Factory | Garrison activated, responded to threat 5989 | -7/Factory | Discovered new exit (range 13) 6368 | -7/Factory | Reached level 15 6407 | -7/Factory | Upgraded with Utility slot (x1) 6462 | -7/Factory | Destroyed 7 combat bots 6479 | -7/Factory | Fabricated Cld. Plasma Cannon (x1) 6547 | -7/Factory | Identified exit to Lower Caves 6821 | -7/Factory | Fabricated Core Analyzer? 6836 | -7/Factory | Fabricated Lgt. Fission Core? 7185 | -7/Factory | First assault squad dispatched 7278 | -7/Factory | Reached level 16 7299 | -7/Factory | Discovered new exit (range 16) 7479 | -7/Factory | Fabricated Nuclear Pulse Thruster? 7609 | -7/Factory | Fabricated Nuclear Pulse Thruster? 8136 | -7/Factory | Central database locked down 9459 | -7/Factory | High security lockdown imminent 9539 | -7/Factory | High security lockdown engaged 9648 | -7/Factory | Build established: Hacker-Sprinter 9717 | -7/Factory | Reached level 17 9719 | -7/Factory | Upgraded with Utility slot (x1) 9757 | -7/Factory | Entered Lower Caves 9861 | -7/Lower Caves | Identified exit to Lower Caves 9893 | -7/Lower Caves | Activated DRS Beacon 9936 | -7/Lower Caves | Entered a destroyed Warlord outpost 10169 | -7/Lower Caves | Found Alien Artifact 10169 | -7/Lower Caves | Identified Core Expander 10169 | -7/Lower Caves | Installed Core Expander, added new Utility slot 10295 | -7/Lower Caves | Entered another Lower Caves area 10418 | -7/Lower Caves | Attracted the attention of an 0b10 checkpoint 10455 | -7/Lower Caves | Attracted the attention of an 0b10 base 10498 | -7/Lower Caves | Learned Armory trap positions 10498 | -7/Lower Caves | Learned Research security intel 10498 | -7/Lower Caves | Learned Extension terminal intel 10501 | -7/Lower Caves | Discovered new exit (range 12) 10507 | -7/Lower Caves | Destroyed 7 combat bots 10516 | -7/Lower Caves | Learned Factory trap positions 10521 | -7/Lower Caves | Identified exit to Zion 10646 | -7/Lower Caves | Spotted B-75 Beast 10657 | -7/Lower Caves | Destroyed B-75 Beast 10685 | -7/Lower Caves | Discovered new exit (range 15) 10692 | -7/Lower Caves | Identified exit to Factory 10764 | -7/Lower Caves | Entered Zion 10791 | -7/Zion | Discovered new exit (range 9) 10794 | -7/Zion | Identified exit to Proximity Caves 10940 | -7/Zion | Found Prototype Device 10940 | -7/Zion | Identified Phasing AFG 11004 | -7/Zion | Given the Hacking Drone Bay 11004 | -7/Zion | Found Prototype Device 11004 | -7/Zion | Identified Hacking Drone Bay 11042 | -7/Zion | Given A8's code to call for help 11088 | -7/Zion | Gained Derelict followers 11125 | -7/Zion | Discovered new exit (range 4) 11125 | -7/Zion | Saw the warning signs outside the Deep Caves entrance 11125 | -7/Zion | Identified exit to Deep Caves 11126 | -7/Zion | Entered Deep Caves 11259 | -7/Deep Caves | Attacked by Z-Imprinter 11302 | -7/Deep Caves | Core integrity fell below 50% 11307 | -7/Deep Caves | Destroyed Z-Imprinter 11335 | -7/Deep Caves | Found Prototype Protection 11335 | -7/Deep Caves | Identified Zio. Weapon Casing 11405 | -7/Deep Caves | Z-Facility disabled 11536 | -7/Deep Caves | Found Prototype Protection 11536 | -7/Deep Caves | Identified Zio. Heavy Carapace 11576 | -7/Deep Caves | Found Zio. Weapon Casing 11799 | -7/Deep Caves | Discovered new exit (range 6) 11802 | -7/Deep Caves | Identified exit to Proximity Caves 11811 | -7/Deep Caves | Build established: Hacker-Gunner 11863 | -7/Deep Caves | Found Unknown Device 11863 | -7/Deep Caves | Identified Surveybot 24 Scanner 11865 | -7/Deep Caves | Found Surveybot 24 Chip 12249 | -7/Deep Caves | Spotted AG-50716 12392 | -7/Deep Caves | Core integrity fell below 20% 12399 | -7/Deep Caves | Destroyed AG-50716 12451 | -7/Deep Caves | Found Zio. Weapon Casing 12459 | -7/Deep Caves | Found Zio. Weapon Casing 12550 | -7/Deep Caves | Build established: Scavenger-Gunner 12551 | -7/Deep Caves | Exposed GOLEM chamber 12552 | -7/Deep Caves | Triggered Deep Caves wall 12556 | -7/Deep Caves | Spotted AG-83540 12754 | -7/Deep Caves | Destroyed by as-55641 with Assembled Shotgun Last Messages --------------- 12737_ Destroyed Asb. Hover Unit. 12737_ as-64936 destroyed. 12737_ Slug penetrates Wall. 12739_ Penetrated by Slug. 12740_ Knocked back. 12741_ as-99330 destroyed. 12741_ Switching to secondary target: as-17373. 12744_ Penetrated by Slug. 12744_ as-17373 destroyed. 12744_ Switching to secondary target: as-05546. 12746_ Particle Charger destroyed. 12748_ as-81543 destroyed. 12748_ Switching to secondary target: as-09505. 12748_ as-09505 destroyed. 12751_ as-51593 destroyed. 12751_ Switching to secondary target: as-05546. 12751_ as-05546 destroyed. 12751_ Switching to secondary target: as-35804. 12751_ as-35804 destroyed. 12751_ Switching to secondary target: as-55641. Map ----- +----------------------------------------------------+ | # # ########## ##################### ### | | # # ######### ############ ####### #### | | # ######### ## ########## ##### #### | | # ## ###### #### ### | | ## ###### #### #### ## | | ## ###### ######### #### # | | ## ###### ######## # | | # ####### ######### # | | ### ########## ###### ## | | ##### ########## ########### | | ###### ######## ####### | | ######## ####### ### ###### | | ###### ####### #### ###### | | ######### ####### #### ####### | | "## ##### ##### #### ########### | | ### ##### ## # #### ########### | | # ## ####### ########### | | ##### ######## ########### | | = ##### ####### ########## | | = ### #### ######## | | ** ! #### #####> # ########## | | = ""# ##################### | | ## ############# ##### | | * ### ############ ### | | "#### ############ | | ###### @ ############ | | |* " ######## %% ## ##### # #! | | % = ###########;%% ### " # | | = ############%%%% ## ### ## | | = #############%% #### | | = #########"" #; #### | | % ######""" a ;;###### ##### | | ! = ####### ;######## ####### | | = #""""" ######### ######## | | ! %%% % ######### ######## | | %% ######## ######## | | = % # ######## ######## | | """""""############## ####### | | " ################## ####### | | "#################### ######## | | # # ##################### ########## | | #### ## ## ####################### ########### | | ##### ## ##"###################################### | | ##### ## ###################################### | | ################################################## | | | | | | | | | | | +----------------------------------------------------+ Best States ------------- Heat Dissipation 117 Energy Generation 65 Energy Capacity 820 Matter Stores 300 Matter Capacity 300 Sight Range 16 Terrain Scan Range 24 Terrain Scan Density 2010 Armor Coverage 400 Resistance: KI 5 Resistance: TH 15 Weapon Shielding 100 Phase Shifting 5 Evasion (%) 76 Core Analysis 9 Particle Charging 15 Offensive Hacking 40 Defensive Hacking 20 Item Schematics ----------------- Core Analyzer | -8/Materials | Hacked Target Analyzer | -8/Materials | Hacked Hvy. Particle Gun | -8/Materials | Hacked Cld. Plasma Cannon | -7/Factory | Hacked Lgt. Fission Core | -7/Factory | Hacked Nuclear Pulse Thruster | -7/Factory | Hacked Imp. EM Pulse Cannon | -7/Zion | Archive Focal Shield | -7/Zion | Archive Dynamic Insulation System | -7/Zion | Archive Drone Bay | -7/Zion | Archive System Restoration Module | -7/Zion | Archive Imp. Particle Charger | -7/Zion | Archive Microactuators | -7/Zion | Archive Adv. System Restoration Module | -7/Zion | Archive Hvy. Treads | -7/Zion | Archive Powered Hammer | -7/Zion | Archive Energy Filter | -7/Zion | Archive Imp. Reaction Control System | -7/Zion | Archive Imp. Hacking Suite | -7/Zion | Archive Lightning Gun | -7/Zion | Archive Robot Schematics ------------------ S-27 Virus | -7/Zion | Archive K-01 Serf | -7/Zion | Archive M-14 Sweeper | -7/Zion | Archive L-61 Swordsman | -7/Zion | Archive Fabricated ------------ Cld. Plasma Cannon | x1 | -7/Factory Core Analyzer | x2 | -7/Factory Lgt. Fission Core | x2 | -7/Factory Nuclear Pulse Thruster | x2 | -7/Factory Nuclear Pulse Thruster | x2 | -7/Factory Repaired ---------- Nothing Studied --------- Lgt. Ion Engine | -8/Materials | Hacked Cesium-ion Thruster | -8/Materials | Hacked Lgt. Fission Core | -7/Factory | Hacked Alien Tech Used ----------------- Core Expander Achievements -------------- None Challenges ------------ None RPGLIKE | -11 -10 -10 -10 -9 -8 -7 -7 -7 -7 -7 --------- Run | Yrd Mat Min Exi Min Mat Fac Low Low Zio Dee Levels Raised 16 | . 3 1 . 1 6 5 . . . . XP Earned 28359 | 3000 4587 2355 243 1725 8068 7187 221 382 118 473 XP Spent 26975 | 2950 1500 . 500 5470 7300 7830 . . . 1425 Upgrades 49 | 7 3 . 1 14 13 7 . . . 4 Power Slot 2 | . . . . 1 . 1 . . . . Propulsion Slot 3 | 1 . . . 2 . . . . . . Utility Slot 7 | 1 . . . 1 2 3 . . . . Weapon Slot 3 | 2 . . . 1 . . . . . . Core Integrity 1 | . . . . . . . . . . 1 Heat Dissipation 11 | . . . . 9 . 2 . . . . Energy Generation 2 | 1 . . . . . 1 . . . . Mass Support 2 | 1 . . . . 1 . . . . . Inventory Capacity 2 | 1 . . 1 . . . . . . . Ranged Accuracy 6 | . 3 . . . 3 . . . . . Hack Attack % 2 | . . . . . 2 . . . . . Hack Defense % 2 | . . . . . 2 . . . . . KI Resistance % 1 | . . . . . 1 . . . . . TH Resistance % 3 | . . . . . 1 . . . . 2 TH Damage % 2 | . . . . . 1 . . . . 1 Protomatter Created 2588 | . 213 73 . 121 577 770 99 135 . 600 Integrity Restored 5512 | . 444 189 . 357 1565 1198 86 256 . 1417 Core 4841 | . 444 189 . 250 1388 915 48 195 . 1412 Parts 671 | . . . . 107 177 283 38 61 . 5 Protomatter Decayed 607 | . 60 27 . . 17 330 56 51 . 66 Game ------ Seed IonicAdvancedDriveblaster Manual? 0 Play Time 03:04:20 Cumulative 165.3 hours Start 2025.11.12 @ 19:59:10 End 2025.11.13 @ 21:29:06 Sessions 5 Manual Loads 0 Difficulty Rogue Special Mode Winter2019/RPGLIKE Game No. 55 Rogue 55 Adventurer 0 Explorer 0 Win Type - Total 6 Types 2/0/1/3/0/0/0/0/0/0 Lore% 56 Gallery% 53 Achievement% 52 Wizard Run 0 Options --------- Layout 2 ASCII 0 Keyboard 0 Movement Mouse Keybinds 1 Fullscreen 2 Font 20/X11 Map View 64x51 Zoom Use 0% Tactical HUD 1 Map Filters NONE Filters NONE Steam 1 RUN: 286568aa-5242-4193-8833-0a4be87541cd